bitfinex-derivatives/quotes_SOLF0:USTF0_20260312
["timestamp","ask_amount","ask_price","bid_price","bid_amount"]
[1773337718445,9.85080825,86.869,86.79,9.09370609]
[1773337719144,9.85080825,86.869,86.813,10.365]
[1773337719338,9.85080825,86.869,86.79,9.09370609]
[1773337719538,9.85080825,86.869,86.78,41.36]
[1773337719742,9.85080825,86.869,86.79,9.09370609]
[1773337720043,9.85080825,86.869,86.817,10.364]
[1773337720443,9.85080825,86.869,86.79,9.09370609]
[1773337720648,9.87635036,86.858,86.808,10.366]
[1773337721039,9.87635036,86.858,86.788,41.36]
[1773337721243,9.87635036,86.858,86.823,10.364]
[1773337721944,9.90553135,86.876,86.83,10.363]
[1773337722245,9.90553135,86.876,86.793,41.36]
[1773337722637,9.90553135,86.876,86.8,9.09370609]
[1773337723843,10.358,86.875,86.821,10.364]
[1773337724043,9.90354466,86.874,86.821,10.364]
[1773337724442,9.90354466,86.874,86.829,10.363]
[1773337725246,9.90354466,86.871,86.82,10.364]
[1773337725843,9.90354466,86.871,86.793,41.36]
[1773337726043,9.90355912,86.869,86.775,14.15099871]
[1773337726347,9.90355912,86.84,86.772,14.15099871]
[1773337726547,9.90355912,86.84,86.771,14.15099871]
[1773337726743,9.90355912,86.84,86.77,9.09370609]
[1773337727137,9.90355912,86.84,86.765,41.34]
[1773337727646,9.90355912,86.84,86.767,14.15099871]
[1773337727847,9.09370609,86.85,86.78,10.369]
[1773337727848,9.88918013,86.83,86.78,10.369]
[1773337728248,9.88918013,86.83,86.767,14.15099871]
[1773337728448,9.88918013,86.828,86.776,10.369]
[1773337729641,9.87623612,86.809,86.761,14.15099871]
[1773337729846,9.87623612,86.809,86.745,14.15099871]
[1773337730253,9.87623612,86.809,86.743,14.15099871]
[1773337730944,9.87623628,86.829,86.75,23.2447048]
[1773337731150,9.87623628,86.829,86.756,14.15099871]
[1773337731449,9.87623628,86.829,86.755,14.15099871]
[1773337731650,9.87623628,86.829,86.75,23.2447048]
[1773337732248,9.87623628,86.829,86.75,9.09370609]
[1773337732848,9.88005941,86.827,86.773,10.37]
[1773337733453,9.8876911,86.825,86.773,10.37]
[1773337733650,9.8876911,86.825,86.78,10.369]
[1773337733847,9.8876911,86.825,86.754,14.15099871]
[1773337734053,9.8876911,86.825,86.759,14.15099871]
[1773337734252,9.8876911,86.825,86.758,14.15099871]
[1773337734551,9.8876911,86.825,86.757,14.15099871]
[1773337734753,9.8876911,86.825,86.758,14.15099871]
[1773337735250,9.8876911,86.825,86.757,14.15099871]
[1773337735447,9.8876911,86.825,86.778,10.369]
[1773337735652,9.8876911,86.825,86.753,41.3]
[1773337735854,9.8876911,86.825,86.738,14.15099871]
[1773337736054,9.8876911,86.825,86.734,14.15099871]
[1773337736249,9.8877914,86.808,86.731,14.15099871]
[1773337736454,9.8877914,86.808,86.75,9.09370609]
[1773337736651,9.09370609,86.84,86.75,9.09370609]
[1773337736652,9.8877914,86.839,86.75,9.09370609]
[1773337736848,9.8877914,86.839,86.754,14.15099871]
[1773337737047,9.8877914,86.839,86.756,14.15099871]
[1773337737248,9.8877914,86.839,86.792,10.368]
[1773337737544,9.8877914,86.839,86.77,9.09370609]
[1773337738850,9.88238853,86.837,86.784,10.368]
[1773337739957,9.87838363,86.835,86.784,10.368]
[1773337740649,9.87838363,86.832,86.776,10.369]
[1773337740846,9.87838363,86.832,86.752,41.26]
[1773337741050,9.87838363,86.832,86.754,14.15099871]
[1773337741252,9.87838363,86.832,86.753,14.15099871]
[1773337741459,9.87838363,86.832,86.79,10.368]
[1773337742758,9.87838363,86.832,86.754,14.15099871]
[1773337742759,9.87838363,86.832,86.797,10.367]
[1773337744364,9.87838363,86.832,86.752,41.26]
[1773337744564,20.20561413,86.824,86.752,41.26]
[1773337744858,9.84161413,86.823,86.775,10.37]
[1773337745261,9.84161413,86.823,86.752,41.26]
[1773337745858,9.84161413,86.823,86.752,55.41099871]
[1773337746064,9.84161413,86.823,86.782,10.369]
[1773337747267,9.84161413,86.823,86.752,55.41099871]
[1773337747462,9.84161413,86.823,86.752,41.26]
[1773337747662,9.83734226,86.849,86.752,41.26]
[1773337747865,9.83734226,86.849,86.752,55.41099871]
[1773337748265,9.83734226,86.84,86.788,10.368]
[1773337748865,9.83734226,86.84,86.77,9.09370609]
[1773337749568,9.83734226,86.84,86.763,55.27099871]
[1773337749873,9.83734226,86.84,86.751,14.15099871]
[1773337750074,9.83734226,86.84,86.75,9.09370609]
[1773337750976,4.65201947,86.829,86.778,10.369]
[1773337751370,4.65201947,86.829,86.75,9.09370609]
[1773337751371,4.61912208,86.817,86.771,10.37]
[1773337752863,4.61912208,86.815,86.771,10.37]
[1773337753469,4.63346134,86.811,86.763,10.371]
[1773337753670,4.63346134,86.811,86.743,14.15099871]
[1773337754174,4.63346134,86.811,86.746,14.15099871]
[1773337754675,4.63346134,86.811,86.762,10.371]
[1773337755064,4.63346134,86.811,86.74,9.1011232]
[1773337755268,4.63346134,86.811,86.741,14.15099871]
[1773337755565,3.39801456,86.81,86.76,3.39801456]
[1773337755770,4.59285306,86.809,86.76,3.39801456]
[1773337756174,4.59285306,86.806,86.757,10.372]
[1773337758570,4.59277562,86.798,86.73,14.15099871]
[1773337758770,4.59277562,86.789,86.73,3.39801456]
[1773337759074,4.59277562,86.789,86.747,10.373]
[1773337759373,4.59277562,86.789,86.75,3.39801456]
[1773337759677,4.59277562,86.789,86.747,10.373]
[1773337761370,4.59796009,86.805,86.75,3.39801456]
[1773337761577,4.59796009,86.805,86.77,3.39801456]
[1773337762570,4.59796009,86.805,86.76,3.39801456]
[1773337763567,4.59796009,86.805,86.74,9.1018194]
[1773337764073,4.59796009,86.805,86.769,10.37]
[1773337764877,9.1018194,86.84,86.777,10.369]
[1773337764878,4.62714117,86.827,86.777,10.369]
[1773337765779,4.62715257,86.823,86.77,10.37]
[1773337766982,4.62715257,86.82,86.77,10.37]
[1773337767484,4.62703649,86.818,86.762,10.371]
[1773337768171,4.62703649,86.813,86.762,10.371]
[1773337768377,4.62703649,86.813,86.769,10.37]
[1773337774392,4.62703649,86.813,86.775,10.369]
[1773337774588,4.62703649,86.813,86.739,20.748]
[1773337774589,4.62703649,86.813,86.751,14.15099871]
[1773337774784,4.62703649,86.813,86.75,14.15099871]
[1773337774984,4.62703649,86.813,86.751,14.15099871]
[1773337775483,4.62703649,86.813,86.746,14.15099871]
[1773337775688,4.62703649,86.813,86.739,20.748]
[1773337775689,4.62703649,86.813,86.742,14.15099871]
[1773337775882,4.62703649,86.813,86.768,10.37]
[1773337778389,4.6264786,86.809,86.74,14.15099871]
[1773337778590,4.6264786,86.799,86.73,14.15099871]
[1773337778886,4.6264786,86.774,86.72,10.376]
[1773337779883,4.62416712,86.77,86.711,14.15099871]
[1773337780285,4.62416712,86.784,86.71,14.15099871]
[1773337780794,4.62416712,86.783,86.71,14.15099871]
[1773337781190,4.62416712,86.783,86.739,10.374]
[1773337781494,4.62416712,86.783,86.713,14.15099871]
[1773337781894,4.62416712,86.783,86.712,14.15099871]
[1773337782088,4.62416712,86.783,86.74,10.374]
[1773337782791,4.62416712,86.783,86.746,10.373]
[1773337783595,3.40035126,86.78,86.746,10.373]
[1773337783987,8.02397978,86.78,86.72,3.40035126]
[1773337784193,3.40035126,86.77,86.72,3.40035126]
[1773337785595,3.40035126,86.77,86.735,10.374]
[1773337786090,4.62362852,86.78,86.735,10.374]
[1773337786091,4.62104166,86.779,86.735,10.374]
[1773337787393,4.62033263,86.769,86.71,3.40035126]
[1773337787594,4.62033263,86.759,86.705,14.15099871]
[1773337787901,4.62033263,86.759,86.71,3.40035126]
[1773337789086,4.62033263,86.759,86.721,10.376]
[1773337790192,4.62033263,86.759,86.704,14.15099871]
[1773337790394,3.40035126,86.75,86.701,40.6]
[1773337790590,4.62033263,86.759,86.71,3.40035126]
[1773337791391,3.40035126,86.77,86.71,3.40035126]
[1773337791597,4.62103596,86.774,86.73,3.40035126]
[1773337791992,3.40035126,86.77,86.727,10.375]
[1773337792295,8.02138722,86.77,86.72,3.40035126]
[1773337792492,8.02138722,86.77,86.737,10.374]
[1773337792799,4.62103596,86.77,86.737,10.374]
[1773337793694,3.40035126,86.78,86.743,10.373]
[1773337793996,4.62634644,86.787,86.743,10.373]
[1773337794496,3.40035126,86.79,86.74,3.40035126]
[1773337794695,4.62634644,86.802,86.75,3.40035126]
[1773337794887,3.40035126,86.8,86.75,3.40035126]
[1773337795093,4.62634644,86.802,86.75,3.40035126]
[1773337795490,3.40035126,86.8,86.75,3.40035126]
[1773337795894,3.40035126,86.8,86.754,10.372]
[1773337796595,4.62211325,86.799,86.754,10.372]
[1773337796796,4.62211325,86.799,86.75,3.40035126]
[1773337797199,4.62211325,86.797,86.747,10.373]
[1773337797401,4.62211325,86.797,86.752,10.372]
[1773337798101,4.62211325,86.797,86.75,3.40035126]
[1773337798998,4.62061919,86.795,86.75,3.40035126]
[1773337799194,4.62061919,86.795,86.751,10.372]
[1773337802200,4.6202128,86.789,86.743,10.373]
[1773337802494,4.6202128,86.789,86.74,3.40035126]
[1773337802698,4.6202128,86.819,86.77,3.40035126]
[1773337802890,14.20825923,86.856,86.744,14.15099871]
[1773337802891,3.40035126,86.83,86.791,10.368]
[1773337803094,4.6202128,86.833,86.791,10.368]
[1773337803693,3.40035126,86.86,86.81,3.40035126]
[1773337804096,4.63394046,86.866,86.83,3.40035126]
[1773337804299,4.63394046,86.88,86.83,13.76335126]
[1773337804496,4.63394046,86.869,86.81,3.40035126]
[1773337804692,4.63394046,86.869,86.82,3.40035126]
[1773337805096,4.63394046,86.869,86.83,3.40035126]
[1773337805301,4.63394046,86.869,86.82,3.40035126]
[1773337805803,4.63394046,86.869,86.814,10.365]
[1773337805999,4.63394046,86.869,86.702,49.47178932]
[1773337806000,4.63794401,86.859,86.81,3.40035126]
[1773337806301,4.63794401,86.859,86.82,3.40035126]
[1773337806504,4.63794401,86.875,86.821,10.364]
[1773337806901,4.63794401,86.875,86.83,3.40035126]
[1773337807097,4.63794401,86.875,86.797,14.15099871]
[1773337807302,4.63794401,86.875,86.84,3.40035126]
[1773337807505,4.63794401,86.875,86.83,3.40035126]
[1773337807694,4.63794401,86.875,86.81,9.08662539]
[1773337808001,4.64931115,86.91,86.83,9.08662539]
[1773337808596,4.64931115,86.901,86.83,9.08662539]
[1773337809898,4.64931115,86.901,86.851,10.361]
[1773337810698,4.65036282,86.899,86.842,10.362]
[1773337811000,4.65036282,86.899,86.83,9.08662539]
[1773337811498,4.64057246,86.929,86.85,9.08662539]
[1773337812705,4.64057246,86.919,86.85,9.08662539]
[1773337813104,4.64057246,86.919,86.83,9.08662539]
[1773337813504,4.64057246,86.919,86.859,10.359]
[1773337814506,4.64134305,86.917,86.859,10.359]
[1773337814702,4.64134305,86.917,86.85,10.361]
[1773337814903,0.07289511,86.898,86.84,9.08051706]
[1773337815409,4.64134305,86.917,86.857,10.36]
[1773337817302,4.64180932,86.914,86.857,10.36]
[1773337818003,4.64180932,86.914,86.847,10.361]
[1773337818211,4.64180932,86.914,86.828,39.86]
[1773337818398,4.64180932,86.914,86.82,9.08051706]
[1773337819909,4.64343899,86.895,86.838,10.362]
[1773337821507,4.64343899,86.895,86.846,10.361]
[1773337822012,4.64343899,86.895,86.82,9.08051706]
[1773337823111,4.64343899,86.895,86.837,10.362]
[1773337825608,4.63920679,86.892,86.837,10.362]
[1773337827415,4.64068536,86.89,86.837,10.362]
[1773337827615,4.64068536,86.889,86.837,10.362]
[1773337828009,4.64068536,86.879,86.828,10.363]
[1773337828216,20.705,86.922,86.783,20.738]
[1773337828217,3.39211712,86.86,86.81,3.39211712]
[1773337828511,4.64068536,86.879,86.839,10.362]
[1773337829613,4.63870912,86.909,86.85,3.39211712]
[1773337829814,4.63870912,86.909,86.86,3.39211712]
[1773337830008,3.39211712,86.9,86.85,3.39211712]
[1773337830212,4.63870912,86.899,86.853,10.36]
[1773337831419,4.63870912,86.897,86.85,3.39211712]
[1773337831715,4.63870912,86.897,86.793,20.735]
[1773337831918,4.63870912,86.897,86.751,28.30199742]
[1773337831919,4.59956969,86.896,86.85,3.39211712]
[1773337832117,4.59956969,86.896,86.86,3.39211712]
[1773337833415,3.39211712,86.91,86.861,10.359]
[1773337833621,4.64491964,86.909,86.861,10.359]
[1773337836422,4.64491964,86.909,86.86,3.39211712]
[1773337836423,4.64491964,86.909,86.867,10.359]
[1773337836818,4.64491964,86.909,86.793,48.83099871]
[1773337836819,4.64491964,86.909,86.87,3.39211712]
[1773337837726,4.64491964,86.909,86.86,3.39211712]
[1773337838428,4.64491964,86.909,86.867,10.358]
[1773337840228,4.64491964,86.909,86.873,10.358]
[1773337842729,4.64491964,86.909,86.866,10.359]
[1773337843331,4.65358434,86.907,86.859,10.36]
[1773337843533,4.65137551,86.899,86.859,10.36]
[1773337844030,4.65137551,86.899,86.866,10.359]
[1773337844424,4.65137551,86.899,86.85,3.39211712]
[1773337845827,0.07277928,86.883,86.85,3.39211712]
[1773337846034,0.07277928,86.883,86.858,10.36]
[1773337846735,4.69708245,86.883,86.83,3.39211712]
[1773337847339,4.62430317,86.883,86.83,3.39211712]
[1773337847532,3.39211712,86.88,86.83,3.39211712]
[1773337847732,4.56949748,86.879,86.83,3.39211712]
[1773337848438,4.56949748,86.879,86.843,10.361]
[1773337848941,4.56949748,86.913,86.878,10.357]
[1773337849140,4.56949748,86.93,86.89,3.39211712]
[1773337849941,4.58675115,86.949,86.9,10.355]
[1773337850439,4.58675115,86.947,86.893,10.355]
[1773337850641,4.58673414,86.939,86.89,3.39211712]
[1773337850837,4.58673414,86.939,86.88,3.39211712]
[1773337851636,4.56788345,86.909,86.846,14.15099871]
[1773337851943,4.56788345,86.909,86.86,3.39211712]
[1773337852839,4.56788345,86.931,86.88,3.39211712]
[1773337853840,3.39211712,86.93,86.859,14.15099871]
[1773337854043,4.52921365,86.929,86.87,3.39211712]
[1773337854845,4.52921365,86.927,86.88,10.357]
[1773337855538,3.39211712,86.92,86.88,10.357]
[1773337855744,4.53212145,86.919,86.86,3.39211712]
[1773337856336,4.53212145,86.919,86.872,10.358]
[1773337859447,10.353,86.918,86.872,10.358]
[1773337861054,10.353,86.918,86.822,20.728]
[1773337861055,10.351,86.928,86.88,3.39211712]
[1773337861348,4.48195636,86.979,86.879,14.15099871]
[1773337861548,4.48228821,86.969,86.92,3.39211712]
[1773337861752,4.48228821,86.979,86.93,3.39211712]
[1773337862547,4.48228821,86.979,86.94,3.39211712]
[1773337862755,4.48228821,86.979,86.942,10.35]
[1773337863054,20.68,87.027,86.894,38.9]
[1773337863055,4.48228821,86.994,86.95,3.39211712]
[1773337864053,4.48228821,86.994,86.943,10.349]
[1773337864242,3.39211712,87.0,86.95,3.39211712]
[1773337864443,4.50032437,87.006,86.912,59.527]
[1773337864644,4.50032437,86.999,86.94,3.39211712]
[1773337865050,3.39211712,86.98,86.901,14.15099871]
[1773337865247,3.39211712,86.98,86.93,3.39211712]
[1773337865454,4.50032437,86.989,86.93,3.39211712]
[1773337866257,14.85107292,86.988,86.939,10.35]
[1773337866656,3.39211712,87.0,86.94,3.39211712]
[1773337868054,3.39211712,87.0,86.951,10.349]
[1773337868248,4.54890099,86.999,86.94,3.39211712]
[1773337868448,3.39211712,86.99,86.94,3.39211712]
[1773337868657,13.73611712,86.99,86.942,10.35]
[1773337868856,3.39211712,86.98,86.942,10.35]
[1773337869258,3.39211712,86.98,86.933,10.351]
[1773337870057,4.54890099,86.989,86.933,10.351]
[1773337870257,3.39211712,86.98,86.933,10.351]
[1773337870658,4.54890099,86.989,86.94,13.74211712]
[1773337870860,13.73511712,87.0,86.95,3.39211712]
[1773337871659,10.343,87.0,86.92,9.06268913]
[1773337871861,14.90340125,87.0,86.92,9.06268913]
[1773337872363,4.56040125,86.997,86.92,9.06268913]
[1773337873056,4.56040125,86.997,86.95,0.07352169]
[1773337873851,10.344,86.99,86.95,0.07352169]
[1773337874250,14.90197965,86.99,86.95,0.07352169]
[1773337874460,4.55797965,86.977,86.929,10.351]
[1773337874652,4.55797965,86.977,86.9,9.06268913]
[1773337874852,4.55797965,86.977,86.88,9.06268913]
[1773337875654,4.5247514,86.959,86.87,9.07330428]
[1773337875860,4.5247514,86.974,86.89,9.07330428]
[1773337876261,4.5247514,86.972,86.915,10.353]
[1773337876462,4.5247514,86.993,86.91,9.07330428]
[1773337877763,4.5250077,86.992,86.91,9.07330428]
[1773337880361,4.5250077,87.006,86.911,38.54]
[1773337880963,4.5188012,87.002,86.952,10.348]
[1773337881562,4.51635492,86.999,86.899,38.58]
[1773337882067,4.51635492,86.997,86.943,10.35]
[1773337882767,4.51635492,86.995,86.943,10.35]
[1773337884062,4.51487356,86.993,86.949,10.349]
[1773337884264,0.07289391,86.978,86.91,9.07330428]
[1773337884464,4.51487356,86.977,86.9,9.07330428]
[1773337884674,4.51487356,86.977,86.9,47.67330428]
[1773337884866,4.51487356,86.992,86.947,10.349]
[1773337885372,4.51487356,86.99,86.903,20.709]
[1773337886463,4.51487356,86.99,86.939,10.35]
[1773337887071,4.51487356,86.99,86.945,10.349]
[1773337891875,4.51809714,86.988,86.905,20.709]
[1773337892476,4.51809714,86.986,86.935,10.35]
[1773337893177,0.07297033,86.969,86.935,10.35]
[1773337893578,0.07297033,86.969,86.895,14.15099871]
[1773337893579,4.53288891,86.968,86.89,9.07330428]
[1773337894972,4.53288891,86.967,86.875,14.15099871]
[1773337895278,4.53288891,86.967,86.874,38.6]
[1773337895879,4.53891211,86.951,86.902,10.354]
[1773337896678,4.53891211,86.951,86.875,20.716]
[1773337898681,4.53891211,86.951,86.875,34.86699871]
[1773337898979,4.53891211,86.951,86.907,10.354]
[1773337899781,3.38726709,86.95,86.907,10.354]
[1773337900377,3.38726709,86.94,86.907,10.354]
[1773337900882,4.54895098,86.949,86.915,10.353]
[1773337901074,3.38726709,86.95,86.915,10.353]
[1773337901477,4.54970822,86.939,86.89,3.38726709]
[1773337901681,4.54970822,86.939,86.88,3.38726709]
[1773337902082,4.54970822,86.939,86.898,10.355]
[1773337902282,4.54970822,86.939,86.874,38.6]
[1773337902283,4.54970822,86.939,86.89,3.38726709]
[1773337903979,4.54970822,86.939,86.897,10.355]
[1773337904484,0.07288875,86.927,86.897,10.355]
[1773337905585,0.07288875,86.927,86.903,10.354]
[1773337906484,0.07288875,86.927,86.862,14.15099871]
[1773337906485,7.92578994,86.91,86.862,14.15099871]
[1773337906788,4.53852285,86.899,86.85,3.38726709]
[1773337907176,3.38726709,86.92,86.87,3.38726709]
[1773337907576,4.53852285,86.922,86.87,3.38726709]
[1773337908179,3.38726709,86.92,86.842,14.15099871]
[1773337908380,0.07290779,86.905,86.86,3.38726709]
[1773337908588,0.07290779,86.905,86.87,3.38726709]
[1773337908989,4.52467426,86.919,86.87,3.38726709]
[1773337909586,4.52467426,86.919,86.885,10.356]
[1773337909780,4.57919368,86.903,86.836,14.15099871]
[1773337909980,4.57919368,86.903,86.831,20.726]
[1773337909981,4.57919368,86.903,86.85,3.38726709]
[1773337910282,4.50595208,86.903,86.865,10.359]
[1773337910479,4.5059662,86.929,86.88,3.38726709]
[1773337910886,4.5059662,86.929,86.881,10.357]
[1773337911982,4.5059662,86.929,86.889,10.356]
[1773337912588,4.50285504,86.94,86.89,3.38726709]
[1773337913886,4.50285504,86.94,86.903,10.354]
[1773337914087,7.89012213,86.94,86.903,10.354]
[1773337914785,3.38726709,86.95,86.909,10.353]
[1773337914988,3.38726709,86.95,86.9,3.38726709]
[1773337915184,4.50139819,86.955,86.91,3.38726709]
[1773337915686,4.51350606,86.972,86.92,3.38726709]
[1773337915880,0.07299356,86.941,86.92,3.38726709]
[1773337916083,4.51350606,86.972,86.93,3.38726709]
[1773337916291,10.64837928,87.027,86.869,34.51]
[1773337916292,7.90077315,86.99,86.94,3.38726709]
[1773337916991,4.51350606,86.989,86.955,10.348]
[1773337918890,4.51350606,86.989,86.946,10.349]
[1773337920095,4.51350606,86.989,86.959,0.07321564]
[1773337921287,3.38726709,86.98,86.959,0.07321564]
[1773337921686,4.51350606,86.989,86.959,0.07321564]
[1773337922789,4.51350606,86.989,86.938,10.35]
[1773337923092,4.48258444,86.969,86.93,10.351]
[1773337923589,4.48258444,86.969,86.922,10.352]
[1773337924492,4.48258444,86.969,86.913,10.353]
[1773337924789,4.48258444,86.969,86.92,3.38726709]
[1773337925095,14.20825923,87.026,86.886,20.713]
[1773337925096,3.38726709,86.98,86.936,10.35]
[1773337925290,4.48159858,86.979,86.936,10.35]
[1773337925496,4.48159858,86.979,86.943,10.35]
[1773337925690,4.48159858,86.979,86.94,3.38726709]
[1773337925691,4.50034892,86.993,86.94,3.38726709]
[1773337926694,4.50034892,86.989,86.93,3.38726709]
[1773337927597,4.52707225,86.979,86.927,10.351]
[1773337929696,4.52707225,86.979,86.932,10.351]
[1773337932495,4.52707225,86.979,86.93,3.38726709]
[1773337932896,0.07363227,86.964,86.936,10.35]
[1773337934100,0.07363227,86.964,86.929,10.351]
[1773337934596,4.52707225,86.979,86.929,10.351]
[1773337935090,4.52707225,86.979,86.936,10.35]
[1773337936101,4.52707225,86.979,86.93,3.38726709]
[1773337936300,4.52707225,86.979,86.929,10.351]
[1773337936497,3.38726709,86.97,86.92,3.38726709]
[1773337936696,4.53115471,86.969,86.92,3.38726709]
[1773337937798,4.53115471,86.969,86.921,10.352]
[1773337938794,4.52885802,86.967,86.921,10.352]
[1773337939302,4.52885802,86.959,86.913,10.353]
[1773337939993,4.52416001,86.939,86.89,3.38546933]
[1773337940593,4.52411852,86.919,86.86,3.38546933]
[1773337940997,3.38546933,86.93,86.87,3.38546933]
[1773337941196,4.52411852,86.929,86.879,10.357]
[1773337941402,4.52411852,86.919,86.87,3.38546933]
[1773337941795,4.52411852,86.919,86.852,14.2245052]
[1773337941796,4.52411852,86.919,86.872,10.358]
[1773337942503,4.53454203,86.909,86.865,10.359]
[1773337942704,3.38546933,86.9,86.865,10.359]
[1773337942898,4.53454203,86.909,86.865,10.359]
[1773337945208,10.68909921,86.959,86.824,20.728]
[1773337945209,4.52428563,86.899,86.856,10.36]
[1773337945609,4.52428563,86.899,86.85,3.38546933]
[1773337945610,3.38546933,86.89,86.84,3.38546933]
[1773337946101,4.52428563,86.899,86.855,10.36]
[1773337946302,0.07362156,86.874,86.855,10.36]
[1773337947809,3.38546933,86.91,86.862,10.359]
[1773337948110,7.94606884,86.91,86.862,10.359]
[1773337948709,4.56059951,86.909,86.862,10.359]
[1773337948911,4.56059951,86.889,86.83,3.38546933]
[1773337949206,36.22,86.949,86.86,3.38546933]
[1773337949207,7.94606884,86.91,86.86,3.38546933]
[1773337949604,7.94606884,86.91,86.864,10.359]
[1773337949807,4.56211473,86.909,86.864,10.359]
[1773337952716,4.56211473,86.909,86.878,0.07296333]
[1773337960825,10.354,86.908,86.878,0.07296333]
[1773337961028,4.58689801,86.907,86.878,0.07296333]
[1773337961728,4.550329,86.889,86.83,3.38546933]
[1773337962129,4.550329,86.889,86.84,3.38546933]
[1773337963031,4.550329,86.889,86.86,10.359]
[1773337963337,4.5503362,86.879,86.83,3.38546933]
[1773337964329,4.5503362,86.879,86.838,10.362]
[1773337964838,4.54885471,86.869,86.81,3.38546933]
[1773337965036,3.38546933,86.86,86.81,3.38546933]
[1773337965331,10.358,86.876,86.82,3.38546933]
[1773337965632,4.50905798,86.869,86.82,3.38546933]
[1773337966027,4.50905798,86.868,86.81,3.38546933]
[1773337966828,4.50905798,86.859,86.8,3.38546933]
[1773337967334,4.50905798,86.859,86.81,3.38546933]
[1773337967533,4.4956039,86.858,86.81,3.38546933]
[1773337967736,4.4956039,86.839,86.79,3.38546933]
[1773337968035,4.4956039,86.839,86.78,3.38546933]
[1773337968337,4.4956039,86.839,86.79,3.38546933]
[1773337968535,4.4956039,86.839,86.758,20.744]
[1773337968536,4.4956039,86.839,86.78,3.38546933]
[1773337969026,4.4956039,86.829,86.78,3.38546933]
[1773337969837,4.4956039,86.829,86.783,10.369]
[1773337970637,4.4956039,86.829,86.79,10.368]
[1773337971035,4.4956039,86.829,86.79,13.75346933]
[1773337971636,4.4956039,86.829,86.79,10.368]
[1773337973233,3.38546933,86.84,86.797,10.367]
[1773337973435,3.38546933,86.85,86.8,3.38546933]
[1773337973740,4.48975863,86.868,86.825,10.364]
[1773337974540,4.48975863,86.868,86.831,10.363]
[1773337974742,2.16943695,86.868,86.831,10.363]
[1773337975237,2.16943695,86.868,86.83,3.38546933]
[1773337975438,10.359,86.867,86.825,1.44038906]
[1773337975636,10.359,86.867,86.81,3.38546933]
[1773337975941,3.38546933,86.86,86.81,3.38546933]
[1773337976640,3.87458958,86.859,86.81,3.38546933]
[1773337976831,3.87458958,86.859,86.812,10.365]
[1773337979835,3.87458958,86.859,86.819,10.364]
[1773337980236,3.38546933,86.86,86.823,10.364]
[1773337980542,3.38546933,86.87,86.821,1.49915343]
[1773337980942,3.87458958,86.874,86.831,10.363]
[1773337981844,36.26,86.909,86.841,1.47671019]
[1773337981845,0.07297362,86.861,86.841,1.47671019]
[1773337982444,3.38546933,86.88,86.841,1.47671019]
[1773337982845,3.38546933,86.88,86.835,10.362]
[1773337983239,7.26005891,86.88,86.835,10.362]
[1773337983746,3.87458958,86.869,86.82,3.38546933]
[1773337983942,3.87458958,86.869,86.811,1.44632229]
[1773337984144,3.87458958,86.869,86.82,3.38546933]
[1773337984439,3.87458958,86.869,86.828,10.363]
[1773337984647,3.87458958,86.869,86.829,1.44632229]
[1773337986039,3.87458958,86.869,86.82,3.38546933]
[1773337986246,3.87458958,86.859,86.815,1.44592964]
[1773337987244,3.87458958,86.859,86.816,10.365]
[1773337988442,3.87458958,86.839,86.796,1.45178964]
[1773337989047,3.87458958,86.839,86.798,10.367]
[1773337989446,3.87458958,86.819,86.77,3.38546933]
[1773337989746,3.87458958,86.819,86.776,10.369]
[1773337990143,3.38546933,86.81,86.768,10.37]
[1773337990445,3.38546933,86.83,86.771,1.50381279]
[1773337990751,3.87458958,86.829,86.771,1.50381279]
[1773337991947,3.87458958,86.829,86.787,10.368]
[1773337993144,3.38546933,86.84,86.793,11.88572912]
[1773337993350,3.87458958,86.843,86.794,1.51872912]
[1773337993950,3.38546933,86.84,86.794,1.51872912]
[1773337994645,7.26005891,86.84,86.794,1.51872912]
[1773337994850,3.87458958,86.829,86.78,3.38546933]
[1773337995152,3.87458958,86.829,86.779,1.52334453]
[1773337995652,0.0730127,86.813,86.779,1.52334453]
[1773337995853,3.38546933,86.81,86.75,1.45990926]
[1773337996047,3.87458958,86.799,86.751,1.45990926]
[1773337996451,3.87458958,86.799,86.74,3.38546933]
[1773337996452,7.26005891,86.79,86.743,10.373]
[1773337996753,3.87458958,86.789,86.743,10.373]
[1773337998352,3.38546933,86.8,86.741,1.48879729]
[1773337998751,3.87458958,86.799,86.741,1.48879729]
[1773337998950,3.38546933,86.79,86.741,1.48879729]